fUSD/lending_fUSD_20250127
["ID","MTS","AMOUNT","RATE_DAILY","PERIOD"]
[350540504,1737954645124,-500.0,0.00011699,2]
[350540505,1737954645133,-500.0,0.00011699,2]
[350540506,1737954645142,-500.0,0.00011699,2]
[350540507,1737954645151,-500.0,0.00011699,2]
[350540508,1737954645160,-500.0,0.00011699,2]
[350540509,1737954645169,-500.0,0.00011699,2]
[350540510,1737954645180,-500.0,0.00011699,2]
[350540511,1737954645189,-500.0,0.00011699,2]
[350540512,1737954645198,-500.0,0.00011699,2]
[350540513,1737954645207,-500.0,0.00011699,2]
[350540514,1737954645217,-500.0,0.00011699,2]
[350540515,1737954645225,-500.0,0.00011699,2]
[350540516,1737954645234,-500.0,0.00011699,2]
[350540517,1737954645243,-513.0721166,0.00011699,2]
[350540518,1737954645252,-500.0,0.00011699,2]
[350540519,1737954645262,-500.0,0.00011699,2]
[350540520,1737954645271,-500.0,0.00011699,2]
[350540521,1737954645280,-500.0,0.00011699,2]
[350540522,1737954645289,-500.0,0.00011699,2]
[350540523,1737954645298,-500.0,0.00011699,2]
[350540524,1737954645308,-500.0,0.00011699,2]
[350540525,1737954645320,-500.0,0.00011699,2]
[350540526,1737954645330,-500.0,0.00011699,2]
[350540527,1737954645339,-500.0,0.00011699,2]
[350540528,1737954645348,-500.0,0.00011699,2]
[350540529,1737954645358,-550.16,0.00011699,2]
[350540530,1737954645367,-500.0,0.00011699,2]
[350540531,1737954645376,-500.0,0.00011699,2]
[350540532,1737954645385,-500.0,0.00011699,2]
[350540533,1737954645395,-508.49095603,0.00011699,2]
[350540534,1737954645404,-500.0,0.00011699,2]
[350540535,1737954645413,-500.0,0.00011699,2]
[350540536,1737954645422,-500.0,0.00011699,2]
[350540537,1737954645432,-500.0,0.00011699,2]
[350540538,1737954645442,-500.0,0.00011699,2]
[350540539,1737954645451,-500.0,0.00011699,2]
[350540540,1737954645461,-500.0,0.00011699,2]
[350540541,1737954645470,-500.0,0.00011699,2]
[350540542,1737954645480,-500.0,0.00011699,2]
[350540543,1737954645489,-500.0,0.00011699,2]
[350540544,1737954645498,-500.0,0.00011699,2]
[350540545,1737954645507,-500.0,0.00011699,2]
[350540546,1737954645516,-500.0,0.00011699,2]
[350540547,1737954645525,-368.92533164,0.00011699,2]
[350540548,1737954645534,-500.0,0.00011699,2]
[350540549,1737954645544,-510.45485506,0.00011699,2]
[350540550,1737954645553,-506.40796315,0.00011699,2]
[350540551,1737954645562,-500.0,0.00011699,2]
[350540552,1737954645571,-500.0,0.00011699,2]
[350540553,1737954645580,-500.0,0.00011699,2]
[350540554,1737954645589,-500.0,0.00011699,2]
[350540555,1737954645598,-500.0,0.00011699,2]
[350540556,1737954645607,-500.0,0.00011699,2]
[350540557,1737954645617,-500.0,0.00011699,2]
[350540558,1737954645626,-500.0,0.00011699,2]
[350540559,1737954645634,-2400.0,0.000117,4]
[350540560,1737954645643,-993.4431392,0.0001176,2]
[350540561,1737954645652,-2728.22326869,0.00011774,2]
[350540562,1737954645661,-20755.9894,0.00011778,2]
[350540563,1737954645670,-716.8804503,0.00011789,2]
[350540564,1737954645681,-3000.0,0.000118,4]
[350540565,1737954645690,-800.33340782,0.0001182,2]
[350540566,1737954645699,-1999.1282443,0.0001183,2]
[350540567,1737954645708,-1999.1282443,0.00011846,2]
[350540568,1737954645717,-804.9396277,0.00011856,2]
[350540569,1737954645726,-804.9396277,0.00011865,2]
[350540570,1737954645735,-804.9396277,0.00011869,2]
[350540571,1737954645744,-1195.50302773,0.00011875,2]
[350540572,1737954645759,-803.62521657,0.00011875,2]
[350540573,1737954645768,-804.9396277,0.0001188,2]
[350540574,1737954645777,-1519.80497778,0.00011889,2]
[350540575,1737954645789,-479.32326652,0.00011889,2]
[350540576,1737954645799,-285.67679798,0.00011898,2]
[350540577,1737954645814,-214.32320202,0.00011898,2]
[350540578,1737954645823,-500.0,0.00011898,2]
[350540579,1737954645833,-500.0,0.00011898,2]
[350540580,1737954645842,-500.0,0.00011898,2]
[350540581,1737954645851,-500.0,0.00011898,2]
[350540582,1737954645860,-186.22772387,0.00011898,2]
[350540583,1737954645869,-500.0,0.00011898,2]
[350540584,1737954645878,-500.0,0.00011898,2]
[350540585,1737954645887,-500.0,0.00011898,2]
[350540586,1737954645897,-500.88072829,0.00011899,2]
[350540587,1737954645905,-154.60776284,0.000119,2]
[350540588,1737954645915,-600.0,0.000119,4]
[350540590,1737954645924,-716.8804503,0.000119,2]
[350540592,1737954645936,-604.1606117,0.000119,2]
[350540593,1737954645945,-2608.99831248,0.000119,2]
[350540594,1737954645957,-119.22495621,0.000119,2]
[350540595,1737954645967,-167.70256461,0.000119,2]
[350540597,1737954645976,-283.98916418,0.00011904,2]
[350540598,1737954645987,-520.95046352,0.00011904,2]
[350540599,1737954645997,-136.46730648,0.00011915,2]
[350540600,1737954646008,-360.26241,0.00011915,2]
[350540601,1737954646023,-452.914284,0.00011915,2]
[350540608,1737954646142,-263.16190148,0.000119,2]
[350540609,1737954646152,-1049.48424382,0.00011915,2]
[350540610,1737954646162,-162.62471199,0.00011973,2]
[350540611,1737954646171,-501.40181054,0.00011973,2]
[350540612,1737954646181,-154.28130124,0.00011973,2]
[350540613,1737954646200,-345.71869876,0.00011973,2]
[350540614,1737954646210,-604.6491011,0.00011989,2]
[350540615,1737954646220,-452.344725,0.00011989,2]
[350540616,1737954646229,-500.0,0.00011991,2]
[350540617,1737954646238,-500.0,0.00011991,2]
[350540618,1737954646248,-500.0,0.00011991,2]
[350540619,1737954646258,-500.0,0.00011991,2]
[350540620,1737954646268,-500.0,0.00011991,2]
[350540621,1737954646277,-500.0,0.00011991,2]
[350540622,1737954646287,-500.0,0.00011991,2]
[350540623,1737954646296,-500.0,0.00011991,2]
[350540624,1737954646305,-500.0,0.00011991,2]
[350540625,1737954646315,-248.81744724,0.00011991,2]
[350540626,1737954646327,-500.0,0.00011991,2]
[350540627,1737954646337,-500.0,0.00011991,2]
[350540628,1737954646347,-713.5139973,0.00011992,2]
[350540629,1737954646356,-822.3788935,0.00011992,2]
[350540630,1737954646367,-533.7877659,0.00011992,2]
[350540631,1737954646376,-615.2308069,0.00011992,2]
[350540632,1737954646386,-500.0,0.00011996,2]
[350540633,1737954646397,-511.35112908,0.00011996,2]
[350540634,1737954646406,-500.0,0.00011996,2]
[350540635,1737954646415,-500.0,0.00011996,2]
[350540636,1737954646425,-482.43480148,0.00011996,2]
[350540637,1737954646436,-500.0,0.00011996,2]
[350540638,1737954646447,-500.0,0.00011996,2]
[350540639,1737954646456,-500.0,0.00011996,2]
[350540640,1737954646465,-500.0,0.00011996,2]
[350540641,1737954646475,-494.32397749,0.00011996,2]
[350540642,1737954646484,-500.0,0.00011996,2]
[350540643,1737954646494,-500.0,0.00011996,2]
[350540644,1737954646503,-500.0,0.00011996,2]
[350540645,1737954646513,-503.96709303,0.00011996,2]
[350540646,1737954646523,-502.82866791,0.00011996,2]
[350540647,1737954646532,-2444.48,0.00011996,2]
[350540648,1737954646541,-500.0,0.00011996,2]
[350540649,1737954646551,-500.0,0.00011996,2]
[350540650,1737954646560,-511.16727134,0.00011996,2]
[350540651,1737954646570,-500.0,0.00011996,2]
[350540652,1737954646580,-500.0,0.00011996,2]
[350540653,1737954646589,-500.0,0.00011996,2]
[350540655,1737954646599,-590.56352622,0.00011996,2]
[350540657,1737954646608,-500.0,0.00011996,2]
[350540658,1737954646617,-500.0,0.00011996,2]
[350540660,1737954646627,-500.0,0.00011996,2]
[350540661,1737954646636,-500.0,0.00011996,2]
[350540662,1737954646646,-500.0,0.00011996,2]
[350540663,1737954646655,-500.0,0.00011996,2]
[350540664,1737954646664,-500.0,0.00011996,2]
[350540665,1737954646673,-500.0,0.00011996,2]
[350540666,1737954646684,-500.0,0.00011996,2]
[350540667,1737954646693,-500.0,0.00011996,2]
[350540668,1737954646702,-500.0,0.00011996,2]
[350540669,1737954646711,-500.0,0.00011996,2]
[350540670,1737954646720,-500.0,0.00011996,2]
[350540671,1737954646729,-518.96042784,0.00011996,2]
[350540672,1737954646738,-285.0542598,0.00011996,2]
[350540673,1737954646747,-500.0,0.00011997,2]
[350540674,1737954646756,-500.0,0.00011997,2]
[350540675,1737954646765,-500.0,0.00011997,2]
[350540677,1737954646774,-505.43701772,0.00011997,2]
[350540678,1737954646783,-525.74,0.00011997,2]
[350540679,1737954646793,-500.0,0.00011997,2]
[350540680,1737954646802,-500.0,0.00011997,2]
[350540681,1737954646811,-560.1,0.00011997,2]
[350540682,1737954646820,-500.0,0.00011997,2]
[350540683,1737954646829,-500.0,0.00011997,2]
[350540684,1737954646838,-500.0,0.00011997,2]
[350540685,1737954646847,-500.0,0.00011997,2]
[350540686,1737954646856,-500.0,0.00011997,2]
[350540687,1737954646865,-510.9005341,0.00011997,2]
[350540688,1737954646874,-511.333978,0.00011997,2]
[350540689,1737954646884,-500.0,0.00011997,2]
[350540690,1737954646893,-500.0,0.00011997,2]
[350540691,1737954646902,-506.56527355,0.00011997,2]
[350540692,1737954646911,-500.0,0.00011997,2]
[350540693,1737954646921,-521.12035958,0.00011997,2]
[350540694,1737954646933,-500.0,0.00011997,2]
[350540695,1737954646942,-500.0,0.00011997,2]
[350540696,1737954646951,-560.27,0.00011997,2]
[350540697,1737954646961,-500.0,0.00011997,2]
[350540698,1737954646970,-500.0,0.00011997,2]
[350540699,1737954646980,-500.0,0.00011997,2]
[350540700,1737954646990,-500.0,0.00011997,2]
[350540701,1737954647000,-500.0,0.00011997,2]
[350540702,1737954647009,-531.14,0.00011997,2]
[350540703,1737954647018,-500.0,0.00011997,2]
[350540704,1737954647027,-602.85,0.00011997,2]
[350540705,1737954647036,-500.0,0.00011997,2]
[350540706,1737954647046,-562.44,0.00011997,2]
[350540707,1737954647055,-500.0,0.00011997,2]
[350540708,1737954647064,-500.0,0.00011997,2]
[350540709,1737954647073,-500.0,0.00011997,2]
[350540710,1737954647082,-335.8005186,0.00011997,2]
[350540711,1737954647091,-594.18,0.00011997,2]
[350540712,1737954647100,-500.0,0.00011997,2]
[350540713,1737954647109,-500.0,0.00011997,2]
[350540714,1737954647118,-500.0,0.00011997,2]
[350540715,1737954647127,-500.0,0.00011997,2]
[350540716,1737954647136,-567.73,0.00011997,2]
[350540717,1737954647146,-500.0,0.00011997,2]
[350540718,1737954647155,-500.0,0.00011997,2]
[350540719,1737954647165,-500.0,0.00011997,2]
[350540720,1737954647174,-614.67,0.00011997,2]
[350540721,1737954647184,-500.0,0.00011997,2]
[350540722,1737954647193,-500.0,0.00011997,2]
[350540723,1737954647202,-387.39951867,0.00011997,2]
[350540724,1737954647211,-500.0,0.00011997,2]
[350540725,1737954647221,-500.0,0.00011997,2]
[350540726,1737954647230,-500.0,0.00011997,2]
[350540727,1737954647239,-500.0,0.00011997,2]
[350540728,1737954647249,-507.27398672,0.00011997,2]
[350540729,1737954647258,-500.0,0.00011997,2]
[350540730,1737954647267,-500.0,0.00011997,2]
[350540731,1737954647276,-246.74,0.00011997,2]
[350540732,1737954647285,-500.0,0.00011997,2]
[350540733,1737954647294,-500.0,0.00011997,2]
[350540734,1737954647303,-500.0,0.00011997,2]
[350540735,1737954647313,-500.0,0.00011997,2]
[350540736,1737954647326,-424.65180936,0.00011997,2]
[350540737,1737954647335,-500.0,0.00011997,2]
[350540738,1737954647344,-506.86320409,0.00011997,2]
[350540739,1737954647353,-500.0,0.00011997,2]
[350540740,1737954647363,-500.0,0.00011997,2]
[350540741,1737954647372,-562.5,0.00011997,2]
[350540742,1737954647381,-500.0,0.00011997,2]
[350540743,1737954647389,-500.0,0.00011997,2]
[350540744,1737954647399,-500.0,0.00011997,2]
[350540745,1737954647408,-166.81,0.00011997,2]
[350540746,1737954647417,-500.0,0.00011997,2]
[350540747,1737954647426,-500.0,0.00011997,2]
[350540748,1737954647437,-500.0,0.00011997,2]
[350540749,1737954647446,-500.0,0.00011997,2]
[350540750,1737954647455,-500.0,0.00011997,2]
[350540751,1737954647465,-500.0,0.00011997,2]
[350540752,1737954647474,-500.0,0.00011997,2]
[350540753,1737954647483,-500.0,0.00011997,2]
[350540754,1737954647492,-500.0,0.00011997,2]
[350540755,1737954647501,-500.0,0.00011997,2]
[350540756,1737954647511,-500.0,0.00011997,2]
[350540757,1737954647520,-500.0,0.00011997,2]
[350540758,1737954647529,-500.0,0.00011998,2]
[350540759,1737954647688,-500.0,0.00011998,2]
[350540760,1737954647698,-500.0,0.00011998,2]
[350540761,1737954647707,-500.0,0.00011998,2]
[350540762,1737954647717,-500.0,0.00011998,2]
[350540763,1737954647726,-500.0,0.00011998,2]
[350540764,1737954647735,-500.0,0.00011998,2]
[350540765,1737954647744,-500.0,0.00011998,2]
[350540766,1737954647754,-500.0,0.00011998,2]
[350540767,1737954647763,-530.27563147,0.00011998,2]
[350540768,1737954647773,-500.0,0.00011998,2]
[350540769,1737954647782,-500.0,0.00011998,2]
[350540770,1737954647791,-500.0,0.00011998,2]
[350540771,1737954647800,-500.0,0.00011998,2]
[350540772,1737954647810,-500.0,0.00011998,2]
[350540773,1737954647819,-217.50296194,0.00011998,2]
[350540774,1737954647828,-472.36891041,0.00011998,2]
[350540775,1737954647838,-500.0,0.00011998,2]
[350540776,1737954647848,-505.1108393,0.00011998,2]
[350540777,1737954647860,-584.77,0.00011998,2]
[350540778,1737954647870,-500.0,0.00011998,2]
[350540779,1737954647880,-500.0,0.00011998,2]
[350540780,1737954647889,-500.0,0.00011998,2]
[350540781,1737954647898,-500.0,0.00011998,2]
[350540782,1737954647907,-500.0,0.00011998,2]
[350540783,1737954647917,-500.0,0.00011998,2]
[350540784,1737954647927,-515.75273904,0.00011998,2]
[350540785,1737954647938,-500.0,0.00011998,2]
[350540786,1737954647948,-605.1,0.00011998,2]
[350540787,1737954647957,-500.0,0.00011998,2]
[350540788,1737954647966,-500.0,0.00011998,2]
[350540789,1737954647975,-500.0,0.00011998,2]
[350540790,1737954647986,-604.27,0.00011998,2]
[350540791,1737954647995,-500.0,0.00011998,2]
[350540792,1737954648005,-500.0,0.00011998,2]
[350540793,1737954648014,-500.0,0.00011998,2]
[350540794,1737954648024,-596.99912754,0.00011998,2]
[350540795,1737954648033,-500.0,0.00011998,2]
[350540796,1737954648043,-500.0,0.00011998,2]
[350540797,1737954648052,-500.0,0.00011998,2]
[350540798,1737954648062,-500.0,0.00011998,2]
[350540799,1737954648072,-455.50624725,0.00011998,2]
[350540800,1737954648081,-500.0,0.00011998,2]
[350540801,1737954648091,-328.54667689,0.00011998,2]
[350540802,1737954648100,-500.0,0.00011999,2]
[350540803,1737954648109,-500.0,0.00011999,2]
[350540804,1737954648118,-500.0,0.00011999,2]
[350540805,1737954648128,-640.34,0.00011999,2]
[350540806,1737954648137,-500.0,0.00011999,2]
[350540807,1737954648147,-621.38460525,0.00011999,2]
[350540808,1737954648156,-593.74,0.00011999,2]
[350540809,1737954648165,-500.0,0.00011999,2]
[350540810,1737954648174,-500.0,0.00011999,2]
[350540811,1737954648185,-500.0,0.00011999,2]
[350540812,1737954648194,-500.0,0.00011999,2]
[350540813,1737954648203,-525.59411641,0.00011999,2]
[350540814,1737954648212,-500.0,0.00011999,2]
[350540815,1737954648221,-500.0,0.00011999,2]
[350540816,1737954648230,-500.0,0.00011999,2]
[350540817,1737954648239,-500.0,0.00011999,2]
[350540818,1737954648248,-500.0,0.00011999,2]
[350540819,1737954648258,-500.0,0.00011999,2]
[350540820,1737954648267,-500.0,0.00011999,2]
[350540821,1737954648276,-500.0,0.00011999,2]
[350540822,1737954648285,-500.0,0.00011999,2]
[350540823,1737954648294,-509.97123907,0.00011999,2]
[350540824,1737954648303,-500.0,0.00011999,2]
[350540825,1737954648312,-500.0,0.00011999,2]
[350540826,1737954648326,-375.37907292,0.00011999,2]
[350540827,1737954648335,-500.0,0.00011999,2]
[350540828,1737954648344,-500.0,0.00011999,2]
[350540829,1737954648354,-500.0,0.00011999,2]
[350540830,1737954648364,-500.0,0.00011999,2]
[350540831,1737954648373,-531.18384236,0.00011999,2]
[350540832,1737954648383,-500.0,0.00011999,2]
[350540833,1737954648393,-193.32534562,0.00011999,2]
[350540834,1737954648403,-500.0,0.00011999,2]
[350540835,1737954648412,-500.0,0.00011999,2]
[350540836,1737954648421,-500.0,0.00011999,2]
[350540837,1737954648433,-483.6,0.00011999,2]
[350540838,1737954648441,-500.0,0.00011999,2]
[350540839,1737954648450,-500.0,0.00011999,2]
[350540840,1737954648459,-500.0,0.00011999,2]
[350540841,1737954648469,-500.0,0.00011999,2]
[350540842,1737954648486,-500.0,0.00011999,2]
[350540843,1737954648496,-500.0,0.00011999,2]
[350540844,1737954648505,-500.0,0.00011999,2]
[350540845,1737954648515,-500.0,0.00011999,2]
[350540846,1737954648525,-500.0,0.00011999,2]
[350540847,1737954648534,-500.0,0.00011999,2]
[350540848,1737954648543,-500.0,0.00011999,2]
[350540849,1737954648552,-500.0,0.00011999,2]
[350540850,1737954648561,-274.16763975,0.00011999,2]
[350540851,1737954648570,-500.0,0.00011999,2]
[350540852,1737954648579,-500.0,0.00011999,2]
[350540853,1737954648588,-500.0,0.00011999,2]
[350540854,1737954648597,-500.0,0.00011999,2]
[350540855,1737954648606,-293.36901064,0.00011999,2]
[350540856,1737954648616,-500.0,0.00011999,2]
[350540857,1737954648624,-500.0,0.00011999,2]
[350540858,1737954648634,-354.68037967,0.00011999,2]
[350540859,1737954648644,-500.0,0.00011999,2]
[350540860,1737954648653,-174.56,0.00011999,2]
[350540861,1737954648662,-2444.48,0.00011999,2]
[350540862,1737954648671,-2444.48,0.00011999,2]
[350540863,1737954648683,-2444.48,0.00011999,2]
[350540864,1737954648693,-2444.48,0.00011999,2]
[350540865,1737954648702,-2444.48,0.00011999,2]
[350540866,1737954648712,-2444.48,0.00011999,2]
[350540867,1737954648721,-2444.48,0.00011999,2]
[350540868,1737954648731,-500.0,0.00011999,2]
[350540869,1737954648740,-2444.48,0.00011999,2]
[350540870,1737954648750,-500.0,0.00011999,2]
[350540871,1737954648759,-500.0,0.00011999,2]
[350540872,1737954648770,-2444.48,0.00011999,2]
[350540873,1737954648779,-500.0,0.00011999,2]
[350540874,1737954648788,-2444.48,0.00011999,2]
[350540875,1737954648797,-2444.48,0.00011999,2]
[350540876,1737954648806,-2444.48,0.00011999,2]
[350540877,1737954648815,-500.0,0.00011999,2]
[350540878,1737954648824,-2444.48,0.00011999,2]
[350540879,1737954648833,-500.0,0.00011999,2]
[350540880,1737954648842,-2444.48,0.00011999,2]
[350540881,1737954648855,-500.0,0.00011999,2]
[350540882,1737954648864,-2444.48,0.00011999,2]
[350540883,1737954648873,-500.0,0.00011999,2]
[350540884,1737954648883,-2444.48,0.00011999,2]
[350540885,1737954648893,-500.0,0.00011999,2]
[350540886,1737954648902,-2444.48,0.00011999,2]
[350540887,1737954648912,-500.0,0.00011999,2]
[350540888,1737954648921,-2444.48,0.00011999,2]
[350540889,1737954648933,-504.88895286,0.00011999,2]
[350540890,1737954648942,-2444.48,0.00011999,2]
[350540891,1737954648952,-2444.48,0.00011999,2]
[350540892,1737954648962,-2444.67640657,0.00011999,2]
[350540893,1737954648972,-500.0,0.00011999,2]
[350540894,1737954648982,-513.58869063,0.00011999,2]
[350540895,1737954648991,-505.97233857,0.00011999,2]
[350540896,1737954649001,-500.0,0.00011999,2]
[350540897,1737954649010,-500.0,0.00011999,2]
[350540898,1737954649019,-502.834558,0.00011999,2]
[350540899,1737954649029,-500.0,0.00011999,2]
[350540900,1737954649038,-500.0,0.00011999,2]
[350540901,1737954649048,-500.0,0.00011999,2]
[350540902,1737954649058,-500.0,0.00011999,2]
[350540903,1737954649067,-352.56061788,0.00011999,2]
[350540904,1737954649076,-515.24,0.00011999,2]
[350540905,1737954649086,-616.3,0.00011999,2]
[350540906,1737954649095,-500.0,0.00011999,2]
[350540907,1737954649104,-360.1693226,0.00011999,2]
[350540908,1737954649114,-500.0,0.00011999,2]
[350540909,1737954649123,-500.0,0.00011999,2]
[350540910,1737954649133,-500.0,0.00011999,2]
[350540911,1737954649142,-500.0,0.00011999,2]
[350540912,1737954649152,-500.0,0.00011999,2]
[350540913,1737954649161,-500.0,0.00011999,2]
[350540914,1737954649171,-500.0,0.00011999,2]
[350540915,1737954649180,-159.29569581,0.00011999,2]
[350540916,1737954649191,-500.0,0.00011999,2]
[350540917,1737954649200,-340.49157366,0.00011999,2]
[350540918,1737954649210,-500.0,0.00011999,2]
[350540919,1737954649220,-500.0,0.00011999,2]
[350540920,1737954649229,-500.0,0.00011999,2]
[350540921,1737954649238,-500.0,0.00011999,2]
[350540922,1737954649247,-500.0,0.00011999,2]
[350540923,1737954649257,-500.0,0.00011999,2]
[350540924,1737954649266,-500.0,0.00011999,2]
[350540925,1737954649275,-500.0,0.00011999,2]
[350540926,1737954649284,-158.35589914,0.00011999,2]
[350540927,1737954649293,-500.0,0.00011999,2]
[350540928,1737954649302,-500.0,0.00011999,2]
[350540929,1737954649311,-500.0,0.00011999,2]
[350540930,1737954649325,-500.0,0.00011999,2]
[350540931,1737954649334,-500.0,0.00011999,2]
[350540932,1737954649343,-290.5118056,0.00011999,2]
[350540933,1737954649352,-405.14580074,0.00011999,2]
[350540934,1737954649363,-500.0,0.00011999,2]
[350540935,1737954649373,-512.72001758,0.00011999,2]
[350540936,1737954649382,-500.0,0.00011999,2]
[350540937,1737954649391,-500.0,0.00011999,2]
[350540938,1737954649402,-500.0,0.00011999,2]
[350540939,1737954649412,-400.21,0.00011999,2]
[350540940,1737954649421,-500.0,0.00011999,2]
[350540941,1737954649431,-500.0,0.00011999,2]
[350540942,1737954649441,-500.0,0.00011999,2]
[350540943,1737954649451,-164.8426033,0.00011999,2]
[350540944,1737954649460,-58303.54516086,0.00012,2]
[350540945,1737954649470,-1169.0,0.00012,2]
[350540946,1737954649480,-756754.77527089,0.00012,2]
[350540947,1737954649497,-1006.509,0.00012,2]
[350540948,1737954649509,-20400.0,0.00012,2]
[350540949,1737954649520,-642.44,0.00012,2]
[350540950,1737954649531,-402.142406,0.00012,2]
[350540951,1737954649542,-9444.6,0.00012,2]
[350540952,1737954654382,193.33,0.00016658,30]
[350540954,1737955042546,170.06,8.558e-05,2]
[350540955,1737955042757,170.06,9.628e-05,2]
[350540956,1737955484218,1064.16,8.578e-05,2]
[350540957,1737955521419,157.57272496,8.535e-05,2]
[350540996,1737955680826,11891.25288984,0.0001,2]
[350540998,1737955707974,375.067572,7.888e-05,2]
[350540999,1737955719518,183.66,0.00016658,30]
[350541001,1737955723314,6970.96298573,8e-05,2]
[350541002,1737955725193,76256.28720038,8e-05,2]
[350541016,1737955832303,-1000.0,9.957e-05,2]
[350541018,1737955832313,-500.0,9.973e-05,2]
[350541019,1737955832322,-300.0,9.999e-05,2]
[350541020,1737955832331,-150.0,9.999e-05,2]
[350541021,1737955832340,-3073.54568336,0.0001,2]
[350541023,1737955832363,-8984.30724787,0.0001,2]
[350541024,1737955832425,-3074.33873134,0.0001,2]
[350541025,1737955832436,-3704.05335591,0.0001,2]
[350541026,1737955832598,-1041.76047077,0.0001,2]
[350541027,1737955832610,-9282.16531001,0.0001,2]
[350541028,1737955832660,-786.44211909,0.0001,2]
[350541029,1737955832723,-3321.16508446,0.0001,2]
[350541030,1737955832735,-20331.23000001,0.0001,2]
[350541044,1737955832965,-7698.18030121,0.0001,2]
[350541046,1737955832975,-3200.00000002,0.0001,2]
[350541132,1737955838276,-2459.24920978,0.0001,2]
[350541133,1737955838287,-3844.21206022,0.0001,2]
[350541134,1737955838298,-775.17279129,0.0001,2]
[350541135,1737955838309,-1475.0,0.0001,2]
[350541136,1737955838337,-4823.172,0.0001,2]
[350541137,1737955838401,-727.31762433,0.0001,2]
[350541138,1737955838464,-1699.56645388,0.0001,2]
[350541139,1737955838475,-315.5,0.0001,2]
[350541162,1737955840331,-329.32867809,0.0001,2]
[350541163,1737955840387,-4130.09395742,0.0001,2]
[350541176,1737955843577,-2016.10749869,0.0001,2]
[350541177,1737955843642,-1510.35,0.0001,2]
[350541178,1737955843654,-10131.32207484,0.0001,2]
[350541181,1737955843995,-814.80875902,0.0001,2]
[350541182,1737955844060,-1864.94790699,0.0001,2]
[350541188,1737955846371,-17355.26077035,0.0001,2]
[350541200,1737955938750,170.06,7.697e-05,2]
[350541201,1737956147395,200.0,9.454e-05,2]
[350541202,1737956168480,171.05,9.501e-05,2]
[350541203,1737956189560,167.95,9.462e-05,2]
[350541204,1737956344970,1010.95,8.219e-05,2]
[350541205,1737956429050,1077.67,9.458e-05,2]
[350541206,1737956527333,10081.1719522,9.4e-05,2]
[350541207,1737956658559,174.47,0.00016658,30]
[350541208,1737956672871,23900.0,9.407e-05,2]
[350541209,1737956706284,466.31,9.345e-05,2]
[350541210,1737956741412,250.0,9.368e-05,2]
[350541213,1737956826402,1852.42,9.392e-05,2]
[350541214,1737956837251,250.0,9.443e-05,2]
[350541215,1737956862087,6803.0,9.415e-05,2]
[350541217,1737956940121,250.0,9.391e-05,2]
[350541218,1737956942318,1500.0,9.316e-05,2]
[350541220,1737956968279,782.94,9.401e-05,2]
[350541226,1737956983923,-809.88,9.524e-05,2]
[350541227,1737956983945,-150.0,9.534e-05,2]
[350541228,1737956983966,-176.47450767,9.545e-05,2]
[350541229,1737956983987,-1000.0,9.545e-05,2]
[350541230,1737956984008,-16195.15260054,9.621e-05,2]
[350541231,1737956984028,-170.06,9.621e-05,2]
[350541232,1737956984052,-255.56,9.622e-05,2]